bitfinex-derivatives/quotes_SOLF0:USTF0_20250625
["timestamp","ask_amount","ask_price","bid_price","bid_amount"]
[1750877081919,4.60848321,143.46,143.42,4.44112397]
[1750877082126,6.9667,143.47,143.42,4.44112397]
[1750877082725,6.9667,143.47,143.44,6.9677]
[1750877082927,6.9667,143.47,143.42,4.44112397]
[1750877083126,6.9667,143.47,143.44,6.9676]
[1750877083324,6.967,143.46,143.44,6.9676]
[1750877084132,6.9666,143.47,143.44,6.9676]
[1750877085233,36.22,143.49,143.44,6.9676]
[1750877085234,6.967,143.46,143.44,6.9676]
[1750877086033,6.9667,143.47,143.44,6.9676]
[1750877086231,6.9667,143.47,143.43,4.44947633]
[1750877086232,6.9667,143.47,143.45,6.9674]
[1750877086738,6.9669,143.46,143.43,4.44947633]
[1750877086935,4.65723881,143.48,143.43,4.44947633]
[1750877087130,36.22,143.49,143.43,4.44947633]
[1750877087934,6.9667,143.47,143.44,6.9677]
[1750877092249,6.9667,143.47,143.45,6.9674]
[1750877093742,4.44947633,143.47,143.41,6.9097]
[1750877093946,4.44947633,143.47,143.4,36.22]
[1750877094550,4.44947633,143.47,143.39,4.44947633]
[1750877094857,6.9687,143.43,143.4,6.9696]
[1750877095049,40.48947633,143.45,143.4,6.9696]
[1750877095244,6.9686,143.43,143.4,6.9696]
[1750877096654,6.9689,143.42,143.4,6.9696]
[1750877097757,6.9694,143.41,143.39,6.9701]
[1750877101156,6.9689,143.42,143.4,6.9698]
[1750877101355,40.48947633,143.45,143.37,56.1753159]
[1750877101557,40.48947633,143.45,143.38,8.64493957]
[1750877101752,6.9687,143.43,143.38,8.64493957]
[1750877101947,141.28947633,143.49,143.41,4.44947633]
[1750877102163,141.28947633,143.49,143.42,6.48421781]
[1750877102164,36.04,143.48,143.42,6.48421781]
[1750877102359,36.04,143.48,143.43,10.93369414]
[1750877102660,6.91077633,143.51,143.45,4.44947633]
[1750877102661,38.5013,143.51,143.45,4.44947633]
[1750877102859,38.5013,143.51,143.45,10.93369414]
[1750877103051,4.44947633,143.5,143.44,6.48421781]
[1750877103756,43.2969,143.51,143.45,6.48421781]
[1750877103964,6.9657,143.49,143.45,6.48421781]
[1750877104557,6.9659,143.49,143.46,6.9667]
[1750877105065,6.9652,143.5,143.48,6.9656]
[1750877105263,36.04,143.51,143.46,10.93369414]
[1750877105762,36.04,143.51,143.46,6.48421781]
[1750877105960,36.04,143.51,143.44,13.0944159]
[1750877106263,6.9657,143.49,143.44,13.0944159]
[1750877106764,36.04,143.52,143.46,4.44947633]
[1750877107055,6.9652,143.5,143.47,6.9662]
[1750877107454,6.9652,143.5,143.48,6.9659]
[1750877107654,6.9646,143.51,143.46,4.44947633]
[1750877108163,6.9646,143.51,143.46,11.75807633]
[1750877108353,4.44947633,143.59,143.5,4.44947633]
[1750877108556,36.04,143.58,143.5,4.44947633]
[1750877108865,36.04,143.58,143.49,36.04]
[1750877108866,4.44947633,143.55,143.49,36.04]
[1750877109258,4.44947633,143.55,143.5,6.965]
[1750877109564,4.44947633,143.57,143.49,40.48947633]
[1750877109760,36.04,143.58,143.52,6.9636]
[1750877110164,6.9628,143.55,143.51,4.44947633]
[1750877110366,36.04,143.58,143.52,6.9637]
[1750877111262,36.04,143.58,143.53,6.9634]
[1750877112665,6.9628,143.55,143.52,6.9638]
[1750877112869,36.04,143.58,143.51,4.44947633]
[1750877113465,6.9628,143.55,143.52,6.9638]
[1750877115870,6.9628,143.55,143.53,6.9635]
[1750877116076,6.9622,143.56,143.53,6.9635]
[1750877116272,36.04,143.58,143.53,6.9635]
[1750877116774,6.9625,143.56,143.53,6.9635]
[1750877116972,36.04,143.58,143.52,6.9638]
[1750877117174,6.963,143.55,143.51,4.44947633]
[1750877117476,6.963,143.55,143.52,6.964]
[1750877117670,6.9634,143.54,143.49,46.94972486]
[1750877117870,6.9634,143.54,143.49,40.48947633]
[1750877118065,6.9634,143.54,143.51,6.9642]
[1750877118269,4.44947633,143.55,143.46,204.67316856]
[1750877118572,4.44947633,143.55,143.5,6.9647]
[1750877118771,6.9638,143.53,143.5,6.9647]
[1750877119365,6.9641,143.52,143.49,6.9653]
[1750877119577,6.9641,143.52,143.48,4.44947633]
[1750877120771,6.9641,143.52,143.5,6.9647]
[1750877120978,6.9636,143.53,143.48,4.44947633]
[1750877121879,6.9636,143.53,143.5,6.9646]
[1750877122176,4.44947633,143.55,143.48,6.46024853]
[1750877122375,4.44947633,143.55,143.47,10.90972486]
[1750877122566,4.44947633,143.55,143.48,6.9657]
[1750877122771,38.4936,143.54,143.48,6.9657]
[1750877122964,43.2907,143.54,143.48,6.9657]
[1750877123572,6.9648,143.51,143.47,4.44947633]
[1750877123979,6.9648,143.51,143.49,6.9654]
[1750877124381,6.9642,143.52,143.47,4.44947633]
[1750877124679,36.02,143.54,143.51,6.9642]
[1750877124982,42.9834,143.54,143.51,6.9642]
[1750877125169,36.02,143.54,143.51,6.9642]
[1750877125671,6.9638,143.53,143.51,6.9642]
[1750877126691,42.9832,143.54,143.49,10.90972486]
[1750877127480,42.9832,143.54,143.51,6.9641]
[1750877127885,6.9632,143.54,143.51,6.9641]
[1750877128187,6.9636,143.53,143.51,6.9641]
[1750877128885,6.9636,143.53,143.5,6.9647]
[1750877129082,40.44947633,143.57,143.49,10.90972486]
[1750877129283,7.2707,143.58,143.55,6.9625]
[1750877129485,36.0,143.6,143.53,4.44947633]
[1750877129789,6.9615,143.58,143.53,4.44947633]
[1750877130079,6.9615,143.58,143.55,6.9622]
[1750877130277,4.44947633,143.62,143.55,4.44947633]
[1750877130587,4.44947633,143.6,143.53,6.46024853]
[1750877131091,6.9619,143.57,143.54,6.963]
[1750877131476,6.9619,143.57,143.52,6.46024853]
[1750877131673,6.9613,143.58,143.55,6.9623]
[1750877131876,36.0,143.59,143.53,4.44947633]
[1750877132081,40.44947633,143.62,143.55,4.44947633]
[1750877132285,6.9605,143.6,143.57,6.9616]
[1750877132488,36.0,143.62,143.57,4.44947633]
[1750877132879,36.0,143.62,143.58,6.9609]
[1750877133489,6.96,143.61,143.58,6.9609]
[1750877133689,36.0,143.62,143.58,6.9609]
[1750877134191,6.9597,143.61,143.58,6.9609]
[1750877134889,6.9602,143.6,143.58,6.9609]
[1750877136583,4.44947633,143.6,143.54,36.0]
[1750877136984,4.44947633,143.6,143.55,6.9623]
[1750877136985,6.9615,143.58,143.55,6.9623]
[1750877137489,6.9615,143.58,143.56,6.962]
[1750877137792,6.9609,143.59,143.54,36.0]
[1750877137990,36.0,143.62,143.58,6.9608]
[1750877138186,6.9598,143.61,143.55,4.44947633]
[1750877138484,36.0,143.62,143.55,4.44947633]
[1750877138787,36.0,143.62,143.58,6.9608]
[1750877138989,36.0,143.62,143.55,4.44947633]
[1750877140183,36.0,143.62,143.59,6.9603]
[1750877140380,35.98,143.65,143.57,4.44947633]
[1750877140588,6.9589,143.63,143.6,6.9597]
[1750877141090,6.9589,143.63,143.58,35.98]
[1750877141691,6.9594,143.62,143.58,35.98]
[1750877141894,35.98,143.65,143.58,35.98]
[1750877142289,6.9589,143.63,143.58,35.98]
[1750877142687,4.44947633,143.66,143.59,4.44947633]
[1750877142988,4.44947633,143.66,143.58,42.43071213]
[1750877143188,4.44947633,143.66,143.58,35.98]
[1750877143388,4.44947633,143.64,143.58,35.98]
[1750877144088,6.9584,143.64,143.58,35.98]
[1750877144695,6.9578,143.65,143.58,35.98]
[1750877144896,6.9578,143.65,143.59,4.44947633]
[1750877145285,6.9583,143.64,143.59,4.44947633]
[1750877145788,6.9579,143.65,143.59,4.44947633]
[1750877145985,4.44947633,143.67,143.59,4.44947633]
[1750877146385,6.9577,143.65,143.63,6.9583]
[1750877146585,4.44947633,143.67,143.59,4.44947633]
[1750877147393,6.958,143.65,143.63,6.9583]
[1750877147586,4.44947633,143.67,143.58,40.7863]
[1750877147789,9.53076324,143.67,143.59,4.44947633]
[1750877148191,6.9582,143.65,143.62,6.9591]
[1750877148387,6.9582,143.65,143.59,4.44947633]
[1750877149886,6.9583,143.64,143.59,4.44947633]
[1750877150290,14.07470368,143.67,143.59,4.44947633]
[1750877150895,14.07470368,143.67,143.63,6.9584]
[1750877151296,14.07470368,143.67,143.59,4.44947633]
[1750877151491,4.44947633,143.65,143.58,40.7863]
[1750877151797,6.9585,143.64,143.58,40.7863]
[1750877152189,4.44947633,143.65,143.61,6.9594]
[1750877152395,6.9589,143.63,143.61,6.9594]
[1750877152698,4.44947633,143.65,143.58,35.98]
[1750877152891,6.9592,143.62,143.58,35.98]
[1750877153497,6.9592,143.62,143.59,6.9605]
[1750877153796,6.9597,143.61,143.59,6.9605]
[1750877154393,6.9594,143.62,143.59,6.9605]
[1750877154597,35.98,143.64,143.58,35.98]
[1750877155192,6.9587,143.63,143.61,6.9594]
[1750877155597,6.9592,143.62,143.6,6.9599]
[1750877157393,6.9596,143.61,143.59,6.9604]
[1750877158296,4.44947633,143.63,143.59,6.9604]
[1750877158894,6.9599,143.61,143.59,6.9604]
[1750877159901,38.3596,143.64,143.57,4.44050776]
[1750877160602,4.44050776,143.63,143.55,49.02544733]
[1750877160797,4.44050776,143.63,143.55,40.38050776]
[1750877160995,6.9601,143.6,143.58,6.9608]
[1750877161602,6.96,143.61,143.55,40.38050776]
[1750877161803,9.17810776,143.63,143.55,40.38050776]
[1750877162304,4.44050776,143.59,143.53,8.64493957]
[1750877162508,4.44050776,143.59,143.52,35.94]
[1750877162805,6.9619,143.57,143.54,6.9626]
[1750877163405,6.9619,143.57,143.55,6.9625]
[1750877164299,6.9619,143.57,143.54,6.9628]
[1750877165699,6.9622,143.56,143.53,13.43599602]
[1750877165900,4.44050776,143.57,143.53,13.43599602]
[1750877166104,6.9629,143.55,143.52,35.94]
[1750877166908,6.9629,143.55,143.53,6.9633]
[1750877167408,6.9631,143.54,143.51,6.47269602]
[1750877168410,6.9631,143.54,143.52,6.9638]
[1750877168796,6.9631,143.54,143.51,6.47269602]
[1750877169003,4.44050776,143.55,143.5,6.47269602]
[1750877169201,4.44050776,143.53,143.5,6.47269602]
[1750877169408,6.9645,143.51,143.49,6.47269602]
[1750877169911,4.44050776,143.53,143.49,6.47269602]
[1750877170706,35.96,143.52,143.49,6.47269602]
[1750877170901,4.44050776,143.51,143.46,49.39939602]
[1750877171101,4.44050776,143.51,143.46,35.96]
[1750877171406,4.44050776,143.49,143.45,13.43989602]
[1750877171607,4.44050776,143.49,143.45,6.47269602]
[1750877171808,4.44050776,143.49,143.43,6.47269602]
[1750877172007,4.44050776,143.49,143.44,6.9674]
[1750877172910,6.9672,143.46,143.43,13.44089602]
[1750877173206,6.9672,143.46,143.43,6.9682]
[1750877174610,11.40730776,143.47,143.42,6.47269602]
[1750877174810,4.44050776,143.47,143.42,6.47269602]
[1750877175018,6.9675,143.45,143.4,42.43269602]
[1750877175309,6.9675,143.45,143.4,35.96]
[1750877175504,4.44050776,143.47,143.4,42.43269602]
[1750877175904,11.40720776,143.47,143.4,42.43269602]
[1750877176101,35.96,143.48,143.41,4.44050776]
[1750877176313,35.96,143.48,143.41,10.91320378]
[1750877176702,6.9667,143.47,143.41,10.91320378]
[1750877176908,35.96,143.48,143.41,10.91320378]
[1750877177119,35.96,143.48,143.41,4.44050776]
[1750877177315,42.926,143.48,143.45,6.967]
[1750877178416,35.96,143.48,143.44,6.9677]
[1750877179119,4.44050776,143.47,143.4,35.96]
[1750877179808,6.9672,143.46,143.4,35.96]
[1750877180412,6.9672,143.46,143.43,6.968]
[1750877181016,6.9676,143.45,143.42,6.9687]
[1750877181606,6.9671,143.46,143.43,6.9683]
[1750877182321,13.65870776,143.47,143.44,6.9677]
[1750877184115,6.9669,143.46,143.4,35.96]
[1750877184322,6.9669,143.46,143.43,6.968]
[1750877185318,2.3075,143.49,143.41,13.9387]
[1750877185622,4.44050776,143.49,143.41,18.37920776]
[1750877185923,11.40630776,143.49,143.46,6.9666]
[1750877186524,6.966,143.48,143.44,6.9677]
[1750877187623,6.9665,143.47,143.44,6.9677]
[1750877188622,4.44050776,143.49,143.4,40.40050776]
[1750877189013,40.40050776,143.51,143.44,4.44050776]
[1750877189212,35.96,143.51,143.48,6.9656]
[1750877189410,2.4009,143.52,143.44,40.40050776]
[1750877189714,6.9645,143.51,143.46,4.44050776]
[1750877189914,639.9065,143.53,143.46,4.44050776]
[1750877190321,6.9649,143.51,143.48,6.9657]
[1750877190622,639.9065,143.53,143.48,6.9657]
[1750877191311,639.9065,143.53,143.49,6.9653]
[1750877191519,637.58,143.53,143.46,4.44050776]
[1750877191715,6.9642,143.52,143.46,4.44050776]
[1750877192218,35.96,143.53,143.49,6.9651]
[1750877192219,6.9645,143.51,143.49,6.9651]
[1750877192709,35.96,143.53,143.49,6.9651]
[1750877192914,6.9644,143.52,143.49,6.9651]
[1750877193418,6.9646,143.51,143.49,6.9651]
[1750877196829,6.9641,143.52,143.5,6.965]
[1750877197417,35.96,143.53,143.49,6.9653]
[1750877197418,6.9645,143.51,143.49,6.9653]
[1750877197626,35.96,143.53,143.45,7.4027]
[1750877197925,6.9654,143.5,143.47,6.9664]
[1750877198125,6.9654,143.5,143.45,7.4027]
[1750877198823,6.9654,143.5,143.48,6.9659]
[1750877200516,6.9655,143.49,143.45,7.4027]
[1750877201121,6.9655,143.49,143.46,6.9668]
[1750877202617,6.9655,143.49,143.47,6.9664]
[1750877203118,6.9651,143.5,143.48,6.9659]
[1750877203925,6.9651,143.5,143.47,6.9662]
[1750877204325,6.9655,143.49,143.47,6.9662]
[1750877207530,6.9655,143.49,143.46,6.47269602]
[1750877207731,6.966,143.48,143.46,6.47269602]
[1750877207921,6.966,143.48,143.44,42.43269602]
[1750877208227,6.966,143.48,143.45,13.43959602]
[1750877208630,6.966,143.48,143.45,6.47269602]
[1750877209228,6.966,143.48,143.46,6.9668]
[1750877210237,6.966,143.48,143.46,13.43949602]
[1750877212234,6.9657,143.49,143.47,6.9664]
[1750877212435,4.44810235,143.5,143.47,6.9664]
[1750877212638,4.44810235,143.5,143.46,6.47269602]
[1750877212933,4.44810235,143.47,143.43,6.47269602]
[1750877213138,4.44810235,143.45,143.42,6.47269602]
[1750877213331,11.41650235,143.43,143.42,6.47269602]
[1750877213841,11.41650235,143.43,143.41,6.47269602]
[1750877214039,35.96,143.5,143.42,6.47269602]
[1750877214336,13.86049571,143.49,143.44,6.50084139]
[1750877214523,6.9668,143.47,143.44,13.46834139]
[1750877215023,4.44810235,143.49,143.45,6.50084139]
[1750877215432,5.07805387,143.48,143.45,6.50084139]
[1750877215731,4.44810235,143.49,143.45,6.50084139]
[1750877215927,6.9664,143.47,143.45,6.50084139]
[1750877216840,35.96,143.5,143.45,6.50084139]
[1750877217134,5.07798898,143.49,143.46,6.50084139]
[1750877217337,40.40810235,143.5,143.46,6.50084139]
[1750877217540,11.41598911,143.47,143.46,6.50084139]
[1750877217843,9.52600348,143.47,143.43,6.50084139]
[1750877218028,4.44958911,143.45,143.4,6.50084139]
[1750877218233,4.44958911,143.42,143.4,6.50084139]
[1750877218428,6.9693,143.41,143.4,6.50084139]
[1750877218640,4.44958911,143.42,143.39,6.50084139]
[1750877219140,6.9698,143.4,143.39,6.50084139]
[1750877220141,6.9696,143.41,143.39,6.50084139]
[1750877220545,4.44958911,143.42,143.39,6.50084139]
[1750877220842,6.9696,143.41,143.39,6.50084139]
[1750877221445,40.36958911,143.44,143.4,6.9698]
[1750877221644,40.36958911,143.44,143.4,13.47064139]
[1750877221848,6.9691,143.42,143.4,6.50084139]
[1750877222852,6.9693,143.41,143.39,13.47094139]
[1750877223251,6.9693,143.41,143.39,6.50084139]
[1750877223545,6.9691,143.42,143.39,6.50084139]
[1750877224042,35.92,143.47,143.4,6.50084139]
[1750877224241,40.36958911,143.47,143.4,42.42084139]
[1750877224438,35.92,143.47,143.43,6.9681]
[1750877224745,6.9672,143.46,143.43,13.46894139]
[1750877226245,6.967,143.46,143.43,13.46894139]
[1750877226446,40.36958911,143.47,143.43,6.50084139]
[1750877226745,40.36958911,143.47,143.42,6.50084139]
[1750877228243,6.9681,143.44,143.42,6.50084139]
[1750877229445,6.9684,143.43,143.42,6.50084139]
[1750877229649,4.44958911,143.45,143.41,6.50084139]
[1750877229846,4.44958911,143.45,143.4,6.50084139]
[1750877230240,6.9693,143.41,143.4,6.50084139]
[1750877230444,6.9693,143.41,143.39,13.47094139]
[1750877231552,5.03198479,143.46,143.39,6.50084139]
[1750877231750,35.92,143.47,143.41,6.50084139]
[1750877231751,4.44958911,143.45,143.41,6.50084139]
[1750877232551,4.44958911,143.45,143.4,6.50084139]
[1750877232850,6.9689,143.42,143.4,6.50084139]
[1750877234249,6.9693,143.41,143.4,6.50084139]
[1750877235048,6.9693,143.41,143.39,13.47094139]
[1750877235252,6.9691,143.42,143.4,6.9697]
[1750877235451,4.44958911,143.45,143.4,6.50084139]
[1750877235950,4.44958911,143.43,143.38,6.50084139]
[1750877236156,4.44958911,143.41,143.38,6.50084139]
[1750877236363,6.9708,143.38,143.37,6.50084139]
[1750877237262,6.9706,143.39,143.37,6.50084139]
[1750877238069,6.9706,143.39,143.37,13.47214139]
[1750877238361,6.9701,143.4,143.37,13.47214139]
[1750877239865,6.9701,143.4,143.38,6.9708]
[1750877240064,35.92,143.43,143.37,6.50084139]
[1750877240256,35.92,143.43,143.38,6.50084139]
[1750877240456,35.92,143.43,143.38,13.47154139]
[1750877240657,4.4547254,143.42,143.37,6.50084139]
[1750877241057,6.9703,143.4,143.37,13.47184139]
[1750877242463,6.9704,143.39,143.37,13.47184139]
[1750877242663,4.4547254,143.4,143.37,6.50084139]
[1750877242863,4.4547254,143.4,143.36,6.9716]
[1750877242864,4.4547254,143.4,143.36,6.50084139]
[1750877243463,6.9713,143.37,143.35,6.50084139]
[1750877243863,6.9718,143.36,143.35,6.50084139]
[1750877244565,6.9723,143.35,143.34,6.50084139]
[1750877244767,4.4547254,143.38,143.33,6.50084139]
[1750877245269,4.4547254,143.38,143.34,6.9725]
[1750877246061,6.9717,143.37,143.34,6.9725]
[1750877246263,4.4547254,143.38,143.34,6.9725]
[1750877246972,6.972,143.36,143.32,6.50084139]
[1750877247166,6.972,143.36,143.33,6.50084139]
[1750877247367,6.972,143.36,143.34,6.9725]
[1750877248766,6.972,143.36,143.33,13.47384139]
[1750877249272,6.9724,143.35,143.33,13.47384139]
[1750877250366,6.972,143.36,143.34,6.9727]
[1750877250679,35.94,143.39,143.33,6.50084139]
[1750877250869,6.9714,143.37,143.33,6.50084139]
[1750877251472,6.9714,143.37,143.34,6.9724]
[1750877251664,6.9719,143.36,143.34,6.9724]
[1750877252065,6.9723,143.35,143.33,13.47384139]
[1750877252376,4.4547254,143.38,143.33,6.50084139]
[1750877252572,6.972,143.36,143.34,6.9725]
[1750877253382,35.94,143.39,143.34,6.9725]
[1750877253383,6.9713,143.37,143.35,6.9721]
[1750877255472,6.971,143.38,143.35,6.50084139]
[1750877255871,6.971,143.38,143.34,6.50084139]
[1750877256270,6.971,143.38,143.36,6.50084139]
[1750877256475,6.9701,143.4,143.36,6.50084139]
[1750877256774,6.9701,143.4,143.38,6.9707]
[1750877256976,6.9696,143.41,143.37,6.50084139]
[1750877257375,42.8891,143.42,143.38,6.50084139]
[1750877257870,35.92,143.42,143.39,6.9701]
[1750877258081,6.9694,143.41,143.39,6.9701]
[1750877260272,6.9694,143.41,143.39,13.45997565]
[1750877262076,6.9698,143.4,143.39,6.48987565]
[1750877262386,40.3738954,143.42,143.38,6.48987565]
[1750877262575,6.9707,143.39,143.37,6.48987565]
[1750877263084,6.9708,143.38,143.37,6.48987565]
[1750877263283,6.9708,143.38,143.36,6.48987565]
[1750877263982,6.9713,143.37,143.36,6.48987565]
[1750877264187,6.9713,143.37,143.35,6.48987565]
[1750877264786,6.9718,143.36,143.35,6.48987565]
[1750877266588,6.9723,143.35,143.34,6.48987565]
[1750877268288,6.9723,143.35,143.33,6.48987565]
[1750877269288,6.9723,143.35,143.33,13.46307565]
[1750877269483,6.9723,143.35,143.33,6.48987565]
[1750877270274,6.9727,143.34,143.33,6.48987565]
[1750877270886,6.9725,143.35,143.32,13.46317565]
[1750877271082,6.9725,143.35,143.33,6.48987565]
[1750877272990,6.9727,143.34,143.33,6.48987565]
[1750877275391,6.9732,143.33,143.31,15.61903957]
[1750877275587,4.45747902,143.35,143.31,8.64493957]
[1750877275793,4.45747902,143.33,143.31,6.50274984]
[1750877276292,6.9741,143.32,143.3,6.50274984]
[1750877277402,6.9742,143.31,143.3,6.50274984]
[1750877277881,6.9747,143.3,143.29,6.50274984]
[1750877278693,6.9747,143.3,143.28,6.50274984]
[1750877279197,6.9752,143.29,143.28,6.50274984]
[1750877280390,6.9757,143.28,143.27,6.50274984]
[1750877280693,4.45747902,143.29,143.26,6.50274984]
[1750877280898,6.9762,143.27,143.26,6.50274984]
[1750877281296,4.45747902,143.27,143.25,6.50274984]
[1750877281503,11.43387902,143.27,143.24,6.50274984]
[1750877281691,4.45747902,143.27,143.24,6.50274984]
[1750877282293,35.88,143.3,143.24,6.50274984]
[1750877282491,35.88,143.3,143.25,6.50274984]
[1750877283097,4.45747902,143.29,143.25,6.50274984]
[1750877283301,4.45747902,143.27,143.23,6.50274984]
[1750877283704,6.9775,143.25,143.23,6.50274984]
[1750877285198,6.9775,143.25,143.23,6.978]
[1750877286504,4.45747902,143.27,143.22,13.48114984]
[1750877286705,4.45747902,143.27,143.22,6.50274984]
[1750877286902,6.977,143.26,143.23,6.978]
[1750877287402,4.45747902,143.29,143.22,6.50274984]
[1750877287597,4.45747902,143.27,143.22,6.50274984]
[1750877288003,6.9769,143.26,143.23,6.9777]
[1750877288196,4.45747902,143.27,143.23,6.9777]
[1750877288596,35.88,143.26,143.22,6.50274984]
[1750877288800,4.45747902,143.25,143.22,6.50274984]
[1750877289096,6.9778,143.24,143.21,6.9786]
[1750877289298,40.33747902,143.26,143.2,6.50274984]
[1750877290101,6.9775,143.25,143.22,6.9783]
[1750877290895,18.6951,143.32,143.21,10.96022886]
[1750877290896,35.9,143.29,143.21,10.96022886]
[1750877291095,4.7472,143.32,143.23,4.45747902]
[1750877291302,6.9747,143.3,143.27,6.9757]
[1750877291612,6.9747,143.3,143.25,4.45747902]
[1750877291810,6.9747,143.3,143.28,6.9754]
[1750877292104,42.8744,143.31,143.28,6.9754]
[1750877293103,42.8744,143.31,143.25,10.96022886]
[1750877293400,6.9748,143.3,143.25,10.96022886]
[1750877294008,6.9748,143.3,143.28,6.9756]
[1750877294908,6.9752,143.29,143.27,6.9759]
[1750877295608,6.9752,143.29,143.26,6.9765]
[1750877295804,40.35747902,143.31,143.26,6.9765]
[1750877296705,4.45747902,143.29,143.23,6.50274984]
[1750877296900,4.45747902,143.27,143.22,35.9]
[1750877297102,40.35747902,143.27,143.21,6.50274984]
[1750877297410,6.9774,143.25,143.23,6.9779]
[1750877297602,40.35747902,143.27,143.23,6.9779]
[1750877297804,6.9773,143.25,143.23,6.9779]
[1750877298905,6.9777,143.24,143.22,6.9783]
[1750877299307,4.45747902,143.25,143.19,44.75624984]
[1750877299508,6.9779,143.24,143.19,44.75624984]
[1750877300111,6.9782,143.23,143.21,6.9788]
[1750877300306,6.9782,143.23,143.19,38.2535]
[1750877300522,6.9782,143.23,143.2,6.9793]
[1750877301415,6.9787,143.22,143.2,6.9793]
[1750877303012,6.9783,143.23,143.21,6.979]
[1750877303413,4.45747902,143.25,143.21,6.979]
[1750877303600,6.978,143.24,143.19,44.75624984]
[1750877303804,40.35747902,143.27,143.19,44.75624984]
[1750877304006,6.9774,143.25,143.19,49.21372886]
[1750877304407,6.9774,143.25,143.23,6.9779]
[1750877304712,6.977,143.26,143.2,6.50274984]
[1750877304914,6.977,143.26,143.23,6.9777]
[1750877305621,6.9772,143.25,143.23,6.9777]
[1750877306020,40.35747902,143.27,143.24,6.9775]
[1750877306710,6.9769,143.26,143.24,6.9775]
[1750877307216,40.35747902,143.29,143.25,6.977]
[1750877307421,40.35747902,143.29,143.22,6.50274984]
[1750877307614,4.45747902,143.27,143.22,6.50274984]
[1750877307815,6.9774,143.25,143.21,6.50274984]
[1750877308007,6.9774,143.25,143.2,6.50274984]
[1750877308207,4.45747902,143.27,143.22,6.9783]
[1750877310221,6.9776,143.24,143.22,6.9783]
[1750877312421,4.45747902,143.27,143.21,13.48154984]
[1750877312619,6.9782,143.23,143.21,13.48154984]
[1750877313320,6.9778,143.24,143.21,13.48154984]
[1750877314321,6.9778,143.24,143.22,6.50274984]
[1750877314820,6.9769,143.26,143.22,6.50274984]
[1750877315024,4.45747902,143.28,143.23,6.50274984]
[1750877315217,4.45747902,143.28,143.22,6.50274984]
[1750877315418,6.9774,143.25,143.22,13.48104984]
[1750877315925,6.9774,143.25,143.23,6.978]
[1750877316722,40.31747902,143.25,143.21,6.50274984]
[1750877316923,35.86,143.25,143.21,6.50274984]
[1750877317417,6.9783,143.23,143.21,6.50274984]
[1750877317624,6.9783,143.23,143.22,6.50274984]
[1750877317822,35.86,143.25,143.22,6.50274984]
[1750877318123,6.9779,143.24,143.22,6.50274984]
[1750877319424,6.9779,143.24,143.23,6.50274984]
[1750877321528,4.45747902,143.24,143.2,8.64493957]
[1750877321731,4.45747902,143.21,143.19,8.64493957]
[1750877322327,6.9796,143.2,143.19,8.64493957]
[1750877322526,4.45747902,143.21,143.18,8.64493957]
[1750877322925,6.9801,143.19,143.18,8.64493957]
[1750877323129,6.9801,143.19,143.17,15.62593957]
[1750877323331,6.9805,143.18,143.17,8.64493957]
[1750877323632,6.9805,143.18,143.16,8.64493957]
[1750877323828,6.9805,143.18,143.17,8.64493957]
[1750877324333,6.9805,143.18,143.16,15.62623957]
[1750877326432,35.86,143.21,143.16,8.64493957]
[1750877326729,35.86,143.21,143.17,8.64493957]
[1750877327132,6.9797,143.2,143.18,6.9802]
[1750877328438,6.9797,143.2,143.18,15.62513957]
[1750877328734,6.9797,143.2,143.18,6.9802]
[1750877332336,42.8393,143.21,143.19,6.9801]
[1750877332640,7.1895,143.26,143.18,8.64493957]
[1750877332641,40.31747902,143.24,143.18,8.64493957]
[1750877332840,6.9793,143.21,143.19,6.9798]
[1750877333540,6.9796,143.2,143.18,6.9804]
[1750877335634,6.9803,143.19,143.17,15.62573957]
[1750877335831,4.45747902,143.2,143.15,8.64493957]
[1750877336345,6.9803,143.19,143.16,6.9812]
[1750877336643,6.9806,143.18,143.16,6.9812]
[1750877337847,6.9803,143.19,143.16,6.9812]
[1750877339250,6.9803,143.19,143.16,15.62613957]